fUST/lending_fUST_20250925
["ID","MTS","AMOUNT","RATE_DAILY","PERIOD"]
[387489681,1758743446421,-350.0,0.00028493,5]
[387489683,1758743446431,-525.47727874,0.00028556,2]
[387489685,1758743446440,-3958.46,0.000286,2]
[387489687,1758743446449,-500.0,0.00028618,7]
[387489689,1758743446459,-272.59,0.00028904,15]
[387489691,1758743446468,-666.08,0.00029041,8]
[387489693,1758743446477,-450.0,0.00029041,5]
[387489695,1758743446487,-200.0,0.0002919,3]
[387489697,1758743446496,-800.0,0.00029194,2]
[387489699,1758743446505,-800.0,0.00029208,2]
[387489701,1758743446515,-2000.0,0.000293,2]
[387489703,1758743446524,-500.0,0.000293,2]
[387489705,1758743446534,-151.0,0.000293,120]
[387489707,1758743446543,-742.4,0.000293,2]
[387489709,1758743446553,-2000.0,0.00029309,30]
[387489711,1758743446562,-500.0,0.00029309,10]
[387489713,1758743446571,-150.0,0.00029309,2]
[387489715,1758743446581,-2000.0,0.00029309,30]
[387489717,1758743446590,-1080.8,0.00029309,30]
[387489719,1758743446599,-250.0,0.00029309,10]
[387489721,1758743446608,-250.0,0.00029309,10]
[387489723,1758743446617,-250.0,0.00029309,10]
[387489725,1758743446626,-346.175394,0.00029309,10]
[387489727,1758743446637,-3857.369703,0.00029318,2]
[387489729,1758743446646,-73144.4751485,0.00029318,2]
[387489731,1758743446656,-192.02965502,0.0002934,2]
[387489733,1758743446665,-767.35050147,0.0002934,2]
[387489735,1758743446675,-2856.06926622,0.0002934,2]
[387489737,1758743446684,-3058.8656124,0.0002934,2]
[387489739,1758743446694,-166.0,0.00029402,7]
[387489741,1758743446703,-328.0,0.00029402,7]
[387489743,1758743446712,-166.0,0.00029402,7]
[387489745,1758743446721,-328.0,0.00029402,7]
[387489747,1758743446734,-328.0,0.00029402,7]
[387489749,1758743446744,-328.0,0.00029402,7]
[387489751,1758743446753,-328.0,0.00029402,7]
[387489753,1758743446763,-328.0,0.00029402,7]
[387489755,1758743446773,-328.0,0.00029402,7]
[387489757,1758743446782,-328.0,0.00029402,7]
[387489759,1758743446791,-328.0,0.00029402,7]
[387489761,1758743446801,-328.0,0.00029402,7]
[387489763,1758743446810,-328.0,0.00029402,7]
[387489765,1758743446820,-328.0,0.00029402,7]
[387489767,1758743446829,-328.0,0.00029402,7]
[387489769,1758743446838,-328.0,0.00029402,7]
[387489771,1758743446848,-328.0,0.00029402,7]
[387489772,1758743446857,-328.0,0.00029402,7]
[387489775,1758743446866,-328.0,0.00029402,7]
[387489776,1758743446876,-328.0,0.00029402,7]
[387489778,1758743446885,-328.0,0.00029402,7]
[387489780,1758743446894,-328.0,0.00029402,7]
[387489782,1758743446904,-328.0,0.00029402,7]
[387489784,1758743446914,-333.76002046,0.00029402,7]
[387489794,1758743446993,-157.13118451,0.00029402,7]
[387489796,1758743447006,-328.0,0.00029402,7]
[387489798,1758743447016,-328.0,0.00029402,7]
[387489800,1758743447025,-328.0,0.00029402,7]
[387489802,1758743447035,-328.0,0.00029402,7]
[387489804,1758743447044,-328.0,0.00029402,7]
[387489806,1758743447054,-328.0,0.00029402,7]
[387489808,1758743447064,-328.0,0.00029402,7]
[387489810,1758743447074,-328.0,0.00029402,7]
[387489812,1758743447083,-328.0,0.00029402,7]
[387489814,1758743447092,-328.0,0.00029402,7]
[387489816,1758743447102,-328.0,0.00029402,7]
[387489818,1758743447111,-328.0,0.00029402,7]
[387489820,1758743447120,-328.0,0.00029402,7]
[387489822,1758743447129,-328.0,0.00029402,7]
[387489824,1758743447138,-328.0,0.00029402,7]
[387489826,1758743447148,-328.0,0.00029402,7]
[387489828,1758743447157,-328.0,0.00029402,7]
[387489830,1758743447167,-328.0,0.00029402,7]
[387489831,1758743447176,-328.0,0.00029402,7]
[387489833,1758743447186,-328.0,0.00029402,7]
[387489835,1758743447196,-390.87766476,0.00029402,7]
[387489837,1758743447205,-1000.0,0.00029402,2]
[387489839,1758743447215,-821.86975659,0.00029402,2]
[387489841,1758743447225,-800.0,0.00029403,2]
[387489843,1758743447251,-390.3504546,0.00029416,30]
[387489845,1758743447261,-390.3504546,0.00029416,30]
[387489848,1758743447271,-390.3504546,0.00029416,30]
[387489849,1758743447280,-1087.22584248,0.0002944,2]
[387489851,1758743447290,-816526.22668098,0.0002944,2]
[387489860,1758743447364,-396508.23414812,0.0002944,2]
[387489876,1758743447511,-480.0,0.00019178,2]
[387489878,1758743447520,-151.0,0.000249,7]
[387489880,1758743447530,-231.529286,0.000249,7]
[387489882,1758743447540,-151.0,0.000249,7]
[387489884,1758743447549,-10513.25819449,0.0002944,2]
[387489938,1758743448066,-125.84050688,0.00019177,2]
[387489940,1758743448078,-374.15949312,0.00019177,2]
[387489942,1758743448088,-500.0,0.00019177,2]
[387489944,1758743448098,-23.84050688,0.00019177,2]
[387489947,1758743448125,-476.15949312,0.00019177,2]
[387489949,1758743448135,-500.0,0.00019177,2]
[387489951,1758743448145,-500.0,0.00019177,2]
[387489953,1758743448154,-500.0,0.00019177,2]
[387489955,1758743448164,-500.0,0.00019177,2]
[387489957,1758743448174,-500.0,0.00019177,2]
[387489959,1758743448184,-480.0,0.00019178,2]
[387489961,1758743448193,-480.0,0.00019452,2]
[387489963,1758743448204,-480.0,0.00019452,2]
[387489965,1758743448214,-480.0,0.00019452,2]
[387489967,1758743448223,-480.0,0.00019726,2]
[387489969,1758743448233,-480.0,0.00019726,2]
[387489971,1758743448243,-480.0,0.00019726,2]
[387489973,1758743448253,-480.0,0.0002,2]
[387489975,1758743448263,-480.0,0.0002,2]
[387489977,1758743448273,-480.0,0.00020273,2]
[387489979,1758743448282,-480.0,0.00020273,2]
[387489981,1758743448292,-480.0,0.00020547,2]
[387489983,1758743448302,-480.0,0.00020547,2]
[387489985,1758743448311,-151.0,0.000249,7]
[387489987,1758743448322,-231.529286,0.000249,7]
[387489990,1758743448332,-151.0,0.000249,7]
[387489992,1758743448342,-223.101074,0.000249,7]
[387489994,1758743448352,-231.529286,0.000249,7]
[387489996,1758743448362,-151.0,0.000249,7]
[387489998,1758743448371,-38930.26965621,0.0002944,2]
[387490000,1758743448384,-17475.80223935,0.0002944,2]
[387490002,1758743448395,-19578.73776065,0.0002944,2]
[387490004,1758743448407,-29520.04389766,0.0002944,2]
[387490015,1758743448501,-302.51602579,0.00019082,2]
[387490017,1758743448512,-500.0,0.00019177,2]
[387490019,1758743448522,-500.0,0.00019177,2]
[387490021,1758743448531,-536.92778489,0.00019177,2]
[387490023,1758743448541,-500.0,0.00019177,2]
[387490025,1758743448550,-270.06467148,0.00019177,2]
[387490027,1758743448560,-571.12772483,0.00019177,2]
[387490036,1758743448643,-304.23516831,0.00019273,2]
[387490038,1758743448653,-153.23641665,0.00019452,2]
[387490040,1758743448663,-150.075,0.00027106,2]
[387490042,1758743448673,-24830.06623516,0.0002944,2]
[387490044,1758743448685,-3608.8414543,0.0002944,2]
[387490046,1758743448697,-108957.70653513,0.0002944,2]
[387492101,1758743689681,199.173056,0.00018382,2]
[387492102,1758743778660,426.04864101,0.00019078,2]
[387492103,1758743782723,156.0,0.00024,120]
[387492104,1758743784129,156.0,0.000269,120]
[387492106,1758744064460,495.17475103,0.00019078,2]
[387492112,1758744414098,-480.0,0.00019177,2]
[387492113,1758744414127,-300.0,0.00019177,2]
[387492114,1758744435759,555.66009728,0.00019078,2]
[387492115,1758744480353,171.15,0.00015984,2]
[387492116,1758744480645,171.14,0.00015984,2]
[387492117,1758744482338,300.0,0.00019176,2]
[387492118,1758744519225,-341.23641387,0.00019177,2]
[387492119,1758744519254,-226.32530943,0.00019177,2]
[387492120,1758744519282,-196.67385239,0.00019177,2]
[387492121,1758744519309,-240.30822909,0.00019177,2]
[387492122,1758744519337,-517.00965823,0.00019177,2]
[387492123,1758744519365,-517.00965823,0.00019177,2]
[387492124,1758744519393,-390.85761553,0.00019177,2]
[387492125,1758744519421,-517.00965823,0.00019177,2]
[387492126,1758744519450,-517.00965823,0.00019177,2]
[387492127,1758744519477,-517.00965823,0.00019177,2]
[387492128,1758744519504,-517.00965823,0.00019177,2]
[387492129,1758744519532,-488.08160239,0.00019177,2]
[387492130,1758744519842,-28.92805584,0.00019177,2]
[387492131,1758744519870,-517.00965823,0.00019177,2]
[387492132,1758744519898,-517.00965823,0.00019177,2]
[387492133,1758744519927,-517.00965823,0.00019177,2]
[387492134,1758744519953,-517.00965823,0.00019177,2]
[387492135,1758744519982,-517.00965823,0.00019177,2]
[387492136,1758744520011,-517.00965823,0.00019177,2]
[387492137,1758744520040,-517.00965823,0.00019177,2]
[387492138,1758744520068,-517.00965823,0.00019177,2]
[387492139,1758744520096,-517.00965823,0.00019177,2]
[387492140,1758744520125,-118.97038195,0.00019177,2]
[387492141,1758744520245,-398.03927628,0.00019177,2]
[387492142,1758744520275,-517.00965823,0.00019177,2]
[387492143,1758744520305,-517.00965823,0.00019177,2]
[387492144,1758744520336,-517.00965823,0.00019177,2]
[387492145,1758744520365,-517.00965823,0.00019177,2]
[387492146,1758744520395,-568.71062405,0.00019177,2]
[387492147,1758744520425,-568.71062405,0.00019177,2]
[387492148,1758744520454,-568.71062405,0.00019177,2]
[387492149,1758744520483,-568.71062405,0.00019177,2]
[387492150,1758744520549,-568.71062405,0.00019177,2]
[387492151,1758744520577,-200.0,0.00019177,2]
[387492170,1758744632128,-300.0,0.00019177,2]
[387492172,1758744632138,-459.398,0.00019178,2]
[387492178,1758744632183,-20.602,0.00019178,2]
[387492180,1758744632194,-480.0,0.00019178,2]
[387492182,1758744632207,-140.19012053,0.00019178,2]
[387492184,1758744632220,-339.80987947,0.00019178,2]
[387492186,1758744632230,-480.0,0.00019178,2]
[387492188,1758744632240,-480.0,0.00019178,2]
[387492190,1758744632250,-480.0,0.00019178,2]
[387492193,1758744632260,-480.0,0.00019178,2]
[387492194,1758744632270,-480.0,0.00019178,2]
[387492197,1758744632281,-480.0,0.00019178,2]
[387492199,1758744632290,-480.0,0.00019178,2]
[387492200,1758744632299,-507.56372822,0.00019178,2]
[387492203,1758744632309,-552.35654303,0.00019178,2]
[387492205,1758744632319,-480.0,0.00019178,2]
[387492207,1758744632328,-572.22352257,0.00019178,2]
[387492209,1758744632343,-480.0,0.00019178,2]
[387492211,1758744632360,-459.95805596,0.00019178,2]
[387492213,1758744632371,-480.0,0.00019178,2]
[387492215,1758744632381,-480.0,0.00019178,2]
[387492217,1758744632390,-480.0,0.00019178,2]
[387492219,1758744632399,-480.0,0.00019178,2]
[387492221,1758744632408,-480.0,0.00019178,2]
[387492223,1758744632417,-480.0,0.00019178,2]
[387492226,1758744632427,-480.0,0.00019178,2]
[387492228,1758744632436,-480.0,0.00019178,2]
[387492230,1758744632445,-374.47906482,0.00019178,2]
[387492232,1758744632455,-480.0,0.00019178,2]
[387492234,1758744632465,-480.0,0.00019178,2]
[387492236,1758744632474,-480.0,0.00019178,2]
[387492238,1758744632483,-300.95501238,0.00019178,2]
[387492240,1758744632493,-480.0,0.00019178,2]
[387492242,1758744632502,-480.0,0.00019178,2]
[387492244,1758744632511,-480.0,0.00019178,2]
[387492246,1758744632521,-480.0,0.00019178,2]
[387492248,1758744632530,-480.0,0.00019178,2]
[387492250,1758744632539,-241.89476825,0.00019178,2]
[387492252,1758744632549,-470.75255859,0.00019178,2]
[387492253,1758744632558,-488.50358639,0.00019178,2]
[387492255,1758744632567,-480.0,0.00019178,2]
[387492257,1758744632577,-471.54255488,0.00019178,2]
[387492259,1758744632586,-480.0,0.00019178,2]
[387492261,1758744632595,-488.02138071,0.00019178,2]
[387492263,1758744632605,-480.0,0.00019178,2]
[387492265,1758744632615,-480.0,0.00019178,2]
[387492267,1758744632624,-480.0,0.00019178,2]
[387492269,1758744632634,-480.0,0.00019178,2]
[387492271,1758744632643,-447.71090213,0.00019178,2]
[387492273,1758744632652,-395.27753309,0.00019178,2]
[387492275,1758744632661,-480.0,0.00019178,2]
[387492277,1758744632670,-480.0,0.00019178,2]
[387492279,1758744632680,-528.98,0.00019178,2]
[387492281,1758744632690,-480.0,0.00019178,2]
[387492283,1758744632699,-480.0,0.00019178,2]
[387492285,1758744632709,-480.0,0.00019178,2]
[387492287,1758744632718,-480.0,0.00019178,2]
[387492289,1758744632727,-480.0,0.00019178,2]
[387492290,1758744632736,-480.0,0.00019178,2]
[387492291,1758744632745,-480.0,0.00019178,2]
[387492292,1758744632754,-480.0,0.00019178,2]
[387492293,1758744632764,-480.0,0.00019178,2]
[387492294,1758744632773,-480.0,0.00019178,2]
[387492295,1758744632782,-480.0,0.00019178,2]
[387492296,1758744632791,-480.0,0.00019178,2]
[387492297,1758744632801,-480.0,0.00019178,2]
[387492298,1758744632810,-481.04215554,0.00019178,2]
[387492299,1758744632820,-468.46684287,0.00019178,2]
[387492300,1758744632829,-460.17723802,0.00019178,2]
[387492301,1758744632839,-480.0,0.00019178,2]
[387492302,1758744632848,-500.0,0.00019178,2]
[387492303,1758744632858,-500.0,0.00019178,2]
[387492304,1758744632868,-480.0,0.00019178,2]
[387492305,1758744632877,-481.2198445,0.00019178,2]
[387492307,1758744632886,-480.0,0.00019178,2]
[387492309,1758744632896,-480.0,0.00019178,2]
[387492311,1758744632906,-480.0,0.00019178,2]
[387492313,1758744632916,-480.0,0.00019178,2]
[387492315,1758744632925,-480.0,0.00019178,2]
[387492317,1758744632934,-394.07403689,0.00019178,2]
[387492319,1758744632948,-85.92596311,0.00019178,2]
[387492321,1758744632957,-221.43403915,0.00019178,2]
[387492362,1758744638125,-258.56596085,0.00019178,2]
[387492363,1758744638135,-480.0,0.00019178,2]
[387492364,1758744638144,-480.0,0.00019178,2]
[387492365,1758744638153,-480.0,0.00019178,2]
[387492366,1758744638163,-480.0,0.00019178,2]
[387492367,1758744638171,-500.0,0.00019178,2]
[387492368,1758744638181,-480.0,0.00019178,2]
[387492369,1758744638190,-480.0,0.00019178,2]
[387492377,1758744638312,-480.0,0.00019178,2]
[387492379,1758744638323,-480.0,0.00019178,2]
[387492382,1758744638333,-480.0,0.00019178,2]
[387492384,1758744638342,-480.0,0.00019178,2]
[387492385,1758744638351,-480.0,0.00019178,2]
[387492387,1758744638361,-480.0,0.00019178,2]
[387492390,1758744638371,-480.0,0.00019178,2]
[387492392,1758744638381,-500.0,0.00019178,2]
[387492394,1758744638390,-500.0,0.00019178,2]
[387492396,1758744638399,-284.38662389,0.00019178,2]
[387492398,1758744638408,-480.0,0.00019178,2]
[387492399,1758744638417,-523.00843586,0.00019178,2]
[387492401,1758744638427,-480.0,0.00019178,2]
[387492403,1758744638436,-485.52348624,0.00019178,2]
[387492405,1758744638446,-480.0,0.00019178,2]
[387492407,1758744638455,-480.0,0.00019178,2]
[387492409,1758744638464,-570.80519111,0.00019178,2]
[387492411,1758744638473,-480.0,0.00019178,2]
[387492413,1758744638483,-491.23160383,0.00019178,2]
[387492415,1758744638492,-480.0,0.00019178,2]
[387492417,1758744638502,-480.0,0.00019178,2]
[387492419,1758744638511,-480.0,0.00019178,2]
[387492421,1758744638521,-480.0,0.00019178,2]
[387492423,1758744638530,-480.0,0.00019178,2]
[387492425,1758744638540,-480.0,0.00019178,2]
[387492427,1758744638549,-480.0,0.00019178,2]
[387492429,1758744638558,-481.12912723,0.00019178,2]
[387492431,1758744638567,-483.34748842,0.00019178,2]
[387492433,1758744638577,-480.0,0.00019178,2]
[387492435,1758744638586,-480.0,0.00019178,2]
[387492437,1758744638596,-480.0,0.00019178,2]
[387492439,1758744638605,-480.0,0.00019178,2]
[387492441,1758744638615,-480.0,0.00019178,2]
[387492443,1758744638625,-480.0,0.00019178,2]
[387492446,1758744638635,-548.23,0.00019178,2]
[387492448,1758744638645,-480.0,0.00019178,2]
[387492450,1758744638655,-480.0,0.00019178,2]
[387492452,1758744638664,-480.0,0.00019178,2]
[387492454,1758744638674,-480.0,0.00019178,2]
[387492456,1758744638683,-460.9915,0.00019178,2]
[387492457,1758744638692,-480.0,0.00019178,2]
[387492459,1758744638702,-480.0,0.00019178,2]
[387492461,1758744638712,-480.0,0.00019178,2]
[387492463,1758744638722,-480.0,0.00019178,2]
[387492465,1758744638731,-480.0,0.00019178,2]
[387492467,1758744638741,-882.23,0.00019178,2]
[387492469,1758744638750,-480.0,0.00019178,2]
[387492471,1758744638759,-480.0,0.00019178,2]
[387492473,1758744638768,-482.56660982,0.00019178,2]
[387492475,1758744638780,-480.0,0.00019178,2]
[387492477,1758744638789,-508.88,0.00019178,2]
[387492479,1758744638799,-500.0,0.00019178,2]
[387492481,1758744638808,-480.0,0.00019178,2]
[387492483,1758744638818,-480.0,0.00019178,2]
[387492486,1758744638829,-480.0,0.00019178,2]
[387492487,1758744638838,-480.0,0.00019178,2]
[387492489,1758744638848,-480.0,0.00019178,2]
[387492491,1758744638857,-480.0,0.00019178,2]
[387492493,1758744638866,-480.0,0.00019178,2]
[387492495,1758744638875,-480.0,0.00019178,2]
[387492497,1758744638885,-590.14,0.00019178,2]
[387492499,1758744638895,-480.0,0.00019178,2]
[387492501,1758744638904,-163.59,0.00019178,2]
[387492503,1758744638914,-480.0,0.00019178,2]
[387492505,1758744638923,-480.0,0.00019178,2]
[387492507,1758744638933,-480.0,0.00019178,2]
[387492509,1758744638942,-480.0,0.00019178,2]
[387492511,1758744638951,-523.25912314,0.00019178,2]
[387492513,1758744638961,-480.0,0.00019178,2]
[387492515,1758744638971,-480.0,0.00019178,2]
[387492517,1758744638980,-619.3184268,0.00019178,2]
[387492519,1758744638990,-480.0,0.00019178,2]
[387492521,1758744638999,-480.0,0.00019178,2]
[387492523,1758744639009,-480.0,0.00019178,2]
[387492525,1758744639018,-480.0,0.00019178,2]
[387492527,1758744639028,-188.4600697,0.00019178,2]
[387492529,1758744639037,-480.0,0.00019178,2]
[387492531,1758744639047,-466.2589212,0.00019178,2]
[387492533,1758744639056,-480.0,0.00019178,2]
[387492535,1758744639066,-480.0,0.00019178,2]
[387492537,1758744639075,-401.347651,0.00019178,2]
[387492539,1758744639085,-480.0,0.00019178,2]
[387492541,1758744639094,-500.0,0.00019178,2]
[387492543,1758744639104,-500.0,0.00019178,2]
[387492545,1758744639113,-500.0,0.00019178,2]
[387492547,1758744639123,-500.0,0.00019178,2]
[387492548,1758744639132,-500.0,0.00019178,2]
[387492550,1758744639142,-480.0,0.00019178,2]
[387492552,1758744639151,-480.0,0.00019178,2]
[387492554,1758744639160,-480.0,0.00019178,2]
[387492556,1758744639170,-480.0,0.00019178,2]
[387492558,1758744639179,-480.0,0.00019178,2]
[387492560,1758744639189,-480.0,0.00019178,2]
[387492562,1758744639202,-481.21593913,0.00019178,2]
[387492564,1758744639212,-480.0,0.00019178,2]
[387492566,1758744639221,-480.0,0.00019178,2]
[387492568,1758744639231,-480.0,0.00019178,2]
[387492570,1758744639241,-485.33090134,0.00019178,2]
[387492572,1758744639251,-482.1727177,0.00019178,2]
[387492574,1758744639260,-480.0,0.00019178,2]
[387492576,1758744639269,-480.0,0.00019178,2]
[387492578,1758744639281,-531.68032778,0.00019178,2]
[387492579,1758744639292,-480.0,0.00019178,2]
[387492581,1758744639301,-480.0,0.00019178,2]
[387492583,1758744639311,-480.0,0.00019178,2]
[387492585,1758744639320,-480.0,0.00019178,2]
[387492587,1758744639329,-625.42,0.00019178,2]
[387492589,1758744639338,-480.0,0.00019178,2]
[387492591,1758744639348,-480.0,0.00019178,2]
[387492593,1758744639358,-480.0,0.00019178,2]
[387492595,1758744639368,-479.62865664,0.00019178,2]
[387492597,1758744639378,-480.0,0.00019178,2]
[387492599,1758744639387,-482.50733348,0.00019178,2]
[387492601,1758744639397,-480.0,0.00019178,2]
[387492603,1758744639406,-480.0,0.00019178,2]
[387492605,1758744639415,-480.0,0.00019178,2]
[387492607,1758744639425,-480.0,0.00019178,2]
[387492609,1758744639435,-480.0,0.00019178,2]
[387492611,1758744639445,-480.0,0.00019178,2]
[387492613,1758744639454,-585.14,0.00019178,2]
[387492615,1758744639463,-480.0,0.00019178,2]
[387492617,1758744639472,-480.0,0.00019178,2]
[387492619,1758744639482,-480.0,0.00019178,2]
[387492621,1758744639491,-480.0,0.00019178,2]
[387492623,1758744639500,-481.3360348,0.00019178,2]
[387492624,1758744639510,-720.62,0.00019178,2]
[387492626,1758744639519,-480.0,0.00019178,2]
[387492628,1758744639528,-481.23899459,0.00019178,2]
[387492630,1758744639537,-480.0,0.00019178,2]
[387492632,1758744639547,-480.0,0.00019178,2]
[387492634,1758744639558,-559.34915716,0.00019178,2]
[387492636,1758744639567,-157.1190119,0.00019178,2]
[387492638,1758744639577,-480.0,0.00019178,2]
[387492640,1758744639587,-480.0,0.00019178,2]
[387492642,1758744639597,-480.0,0.00019178,2]
[387492644,1758744639607,-480.0,0.00019178,2]
[387492646,1758744639616,-480.0,0.00019178,2]
[387492648,1758744639627,-480.0,0.00019178,2]
[387492650,1758744639636,-480.0,0.00019178,2]
[387492651,1758744639646,-480.0,0.00019178,2]
[387492653,1758744639656,-480.0,0.00019178,2]
[387492655,1758744639665,-480.0,0.00019178,2]
[387492657,1758744639675,-480.0,0.00019178,2]
[387492660,1758744639684,-480.0,0.00019178,2]
[387492662,1758744639693,-448.45846262,0.00019178,2]
[387492664,1758744639702,-480.0,0.00019178,2]
[387492666,1758744639712,-480.0,0.00019178,2]
[387492668,1758744639721,-480.0,0.00019178,2]
[387492670,1758744639731,-230.74040021,0.00019178,2]
[387492672,1758744639740,-480.0,0.00019178,2]
[387492675,1758744639750,-480.0,0.00019178,2]
[387492677,1758744639759,-480.0,0.00019178,2]
[387492679,1758744639768,-480.0,0.00019178,2]
[387492681,1758744639778,-480.0,0.00019178,2]
[387492683,1758744639787,-480.0,0.00019178,2]
[387492685,1758744639796,-1411.97,0.00019178,2]
[387492687,1758744639807,-480.0,0.00019178,2]
[387492689,1758744639817,-480.0,0.00019178,2]
[387492691,1758744639826,-480.0,0.00019178,2]
[387492693,1758744639835,-480.0,0.00019178,2]
[387492695,1758744639844,-488.9948695,0.00019178,2]
[387492696,1758744639853,-480.0,0.00019178,2]
[387492698,1758744639863,-428.82238237,0.00019178,2]
[387492700,1758744639872,-480.0,0.00019178,2]
[387492702,1758744639882,-480.0,0.00019178,2]
[387492704,1758744639892,-480.0,0.00019178,2]
[387492706,1758744639901,-480.0,0.00019178,2]
[387492708,1758744639910,-512.17,0.00019178,2]
[387492710,1758744639919,-480.0,0.00019178,2]
[387492712,1758744639928,-480.0,0.00019178,2]
[387492714,1758744639937,-508.05,0.00019178,2]
[387492716,1758744639946,-480.0,0.00019178,2]
[387492717,1758744639955,-480.0,0.00019178,2]
[387492719,1758744639965,-480.0,0.00019178,2]
[387492721,1758744639974,-449.91638099,0.00019178,2]
[387492723,1758744639984,-480.0,0.00019178,2]
[387492725,1758744639995,-480.0,0.00019178,2]
[387492727,1758744640005,-480.0,0.00019178,2]
[387492729,1758744640014,-480.0,0.00019178,2]
[387492731,1758744640023,-480.0,0.00019178,2]
[387492733,1758744640033,-306.31326237,0.00019178,2]
[387492735,1758744640043,-480.0,0.00019178,2]
[387492737,1758744640052,-864.15,0.00019178,2]
[387492739,1758744640061,-480.0,0.00019178,2]
[387492741,1758744640070,-480.0,0.00019178,2]
[387492743,1758744640080,-480.0,0.00019178,2]
[387492745,1758744640089,-480.0,0.00019178,2]
[387492747,1758744640098,-480.0,0.00019178,2]
[387492749,1758744640107,-480.0,0.00019178,2]
[387492751,1758744640116,-480.0,0.00019178,2]
[387492753,1758744640126,-480.0,0.00019178,2]
[387492755,1758744640135,-480.0,0.00019178,2]
[387492757,1758744640144,-480.0,0.00019178,2]
[387492759,1758744640154,-480.0,0.00019178,2]
[387492760,1758744640164,-480.0,0.00019178,2]
[387492762,1758744640173,-480.0,0.00019178,2]
[387492764,1758744640182,-480.0,0.00019178,2]
[387492766,1758744640191,-571.45379782,0.00019178,2]
[387492768,1758744640204,-480.0,0.00019178,2]
[387492770,1758744640214,-480.0,0.00019178,2]
[387492772,1758744640223,-480.0,0.00019178,2]
[387492774,1758744640232,-480.0,0.00019178,2]
[387492776,1758744640241,-485.35226245,0.00019178,2]
[387492778,1758744640250,-500.0,0.00019178,2]
[387492780,1758744640260,-480.0,0.00019178,2]
[387492782,1758744640269,-480.0,0.00019178,2]
[387492784,1758744640279,-480.0,0.00019178,2]
[387492786,1758744640290,-500.0,0.00019178,2]
[387492789,1758744640299,-500.0,0.00019271,2]
[387492790,1758744640309,-500.0,0.00019272,2]
[387492792,1758744640319,-7700.51648472,0.00019273,2]
[387492794,1758744640329,-6254.56624727,0.00019273,2]
[387492796,1758744640338,-538.32,0.0001934,3]
[387492798,1758744640349,-500.0,0.0001935,2]
[387492801,1758744640360,-500.0,0.00019351,2]
[387492803,1758744640370,-500.0,0.00019351,2]
[387492805,1758744640379,-500.0,0.00019351,2]
[387492807,1758744640389,-500.0,0.00019351,2]
[387492808,1758744640398,-500.0,0.00019351,2]
[387492810,1758744640407,-500.0,0.00019351,2]
[387492812,1758744640416,-409.21249044,0.00019351,2]
[387492814,1758744640426,-370000.0,0.00019352,2]
[387492816,1758744640435,-501.26796039,0.00019373,2]
[387492818,1758744640444,-500.0,0.00019373,2]
[387492820,1758744640454,-502.4717029,0.00019373,2]
[387492822,1758744640463,-500.0,0.00019373,2]
[387492824,1758744640473,-500.0,0.00019373,2]
[387492826,1758744640482,-500.0,0.00019373,2]
[387492828,1758744640491,-500.0,0.00019373,2]
[387492838,1758744640570,-500.0,0.00019373,2]